[Event "FIDE WSCC 50 2022"]
[Site "Assisi"]
[Date "2022.11.22"]
[Round "7.4"]
[White "Nevednichy, Vladislav"]
[Black "Paschall, William"]
[Result "1/2-1/2"]
[ECO "C43"]
[WhiteElo "2499"]
[BlackElo "2343"]
[Annotator "TA"]
[PlyCount "73"]
[EventDate "2022.11.14"]
[EventType "swiss"]
[EventCountry "ITA"]
[SourceTitle "playchess.com"]
[Source "ChessBase"]
[SourceQuality "1"]
[TimeControl "40/5400+30:1800+30"]

{[%evp 11,73,2,0,0,0,0,0,0,-1,-1,0,0,0,0,0,-32,-16,-29,-38,-91,-84,-97,-70,-86,-84,-100,0,0,0,0,0,0,0,-11,11,0,0,0,0,0,12,-13,0,-18,-13,-57,0,0,0,0,0,0,0,0,0,0,0,0,0,0,0,0,0,0]} 1. e4 {[%emt 0:00:02]} e5 {[%emt 0:00:45]} 2. Nf3 {[%emt 0:00:09]} Nf6 {[%emt 0:00:24]} 3. d4 {[%emt 0:01:04]} Nxe4 {[%emt 0:00:50]} 4. Bd3 {[%emt 0:00:05]} Nc6 {[%emt 0:01:10]} 5. dxe5 {[%emt 0:13:35]} d5 {[%emt 0:05:53]} 6. O-O {[%emt 0:03:24]} Bg4 {[%emt 0:02:32]} 7. Nc3 {[%emt 0:19:19] C43: Petroff Defence: 3 d4.} Nxc3 {[%emt 0:03:07]} 8. bxc3 {[%emt 0:00:19]} Qd7 {[%emt 0:01:00]} 9. Re1 {[%emt 0:04:56]} Bc5 {[%emt 0:19:26]} 10. h3 {[%emt 0:01:22]} Bh5 {[%emt 0:08:22] [#]} 11. Be3 $146 {[%emt 0:04:59]} ({Predecessor:} 11. Rb1 O-O-O 12. Rb5 Be7 13. Bf4 Bg6 14. Be2 Qf5 15. Nd4 Qxf4 16. Bg4+ Rd7 17. Rxd5 f5 18. Rxd7 fxg4 19. Rxc7+ {1-0 (19) Artemiev,V (2570)-Saduakassova,D (2357) Khanty-Mansiysk 2013}) 11... Bb6 {[%emt 0:04:16]} 12. g4 {[%emt 0:05:32] [#] Hoping for Bf5.} Bg6 {[%emt 0:01:47] Against Bf5} 13. Nd4 {[%emt 0:26:02][%cal Oe5e6] aiming for e6!} Bxd4 {[%emt 0:06:45]} 14. cxd4 {[%emt 0:00:14]} Bxd3 {[%emt 0:01:44]} 15. cxd3 {[%emt 0:00:22]} (15. Qxd3 $15 h5 16. f3) 15... h5 $17 {[%emt 0:01:10]} 16. Kg2 {[%emt 0:00:59]} O-O-O {[%emt 0:01:09]} 17. f3 {[%emt 0:00:32]} f6 {[%emt 0:05:22]} 18. Bf2 {[%emt 0:03:30]} Rde8 {[%emt 0:01:40]} (18... g5 $17 {Strongly threatening ...Qh7.} 19. exf6 Rdf8) 19. exf6 $1 $11 {[%emt 0:02:32]} gxf6 {[%emt 0:00:26] And now ...Reg8 would win.} 20. Rxe8+ {[%emt 0:00:09]} Rxe8 {[%emt 0:07:19]} 21. Qd2 {[%emt 0:00:06]} f5 {[%emt 0:01:03]} 22. gxh5 {[%emt 0:02:25]} Rg8+ {[%emt 0:01:59]} 23. Kh1 {[%emt 0:01:15]} Qh7 {[%emt 0:03:27]} (23... Qg7 $2 24. Rg1 Qh8 25. Rxg8+ Qxg8 26. h6 $18) 24. Qf4 {[%emt 0:03:16]} Qxh5 {[%emt 0:00:27]} 25. h4 {[%emt 0:00:19]} b6 {[%emt 0:10:22]} (25... Qg6 $2 26. Rg1 Qh7 27. Rxg8+ Qxg8 28. Qxf5+ Kb8 29. h5 $18) 26. a3 {[%emt 0:01:08] Against Nb4} Kb7 {[%emt 0:00:33]} ({Much less strong is} 26... Qg6 27. Rg1 Qh7 28. Rxg8+ Qxg8 29. Qxf5+ Kb8 30. Kh2 $18) 27. Kh2 {[%emt 0:02:04]} Re8 {[%emt 0:05:29]} (27... Qg6 $2 28. Rg1 Qh7 29. Rxg8 Qxg8 30. Qxf5 $16) 28. Re1 $1 {[%emt 0:02:29] [#] Prevents Re2. Rxe8 is the strong threat.} Rxe1 {[%emt 0:00:05]} (28... Rf8 $1 $15) 29. Bxe1 $15 {[%emt 0:00:02][%mdl 4096] Endgame KQB-KQN. The position is equal.} Nd8 {[%emt 0:02:45]} 30. Bg3 {[%emt 0:00:37]} Qf7 {[%emt 0:00:25]} 31. Kg2 {[%emt 0:01:37]} Ne6 {[%emt 0:00:54]} 32. Qe5 {[%emt 0:00:05]} f4 {[%emt 0:01:04] White must now prevent ...Qg6.} 33. Bf2 {[%emt 0:00:21]} ({Don't blunder} 33. Qxd5+ $2 c6 34. Qe5 fxg3 35. Kxg3 Qg6+ 36. Kh2 Qh6 $19) 33... Ng7 {[%emt 0:00:45]} 34. Kh3 {[%emt 0:01:00]} Qd7+ {[%emt 0:00:04]} 35. Kg2 {[%emt 0:00:14]} Qf7 {[%emt 0:00:04]} 36. Kh3 {[%emt 0:00:16]} Qd7+ {[%emt 0:00:05]} 37. Kg2 {[%emt 0:00:11] Weighted Error Value: White=0.07 (flawless) /Black=0.08 (flawless)} 1/2-1/2

[Event "FIDE WSCC 50 2022"]
[Site "Assisi"]
[Date "2022.11.22"]
[Round "7.5"]
[White "Bischoff, Klaus"]
[Black "Krizsany, Laszlo"]
[Result "1/2-1/2"]
[ECO "D27"]
[WhiteElo "2479"]
[BlackElo "2371"]
[Annotator "TA"]
[PlyCount "82"]
[EventDate "2022.11.14"]
[EventType "swiss"]
[EventCountry "ITA"]
[SourceTitle "playchess.com"]
[Source "ChessBase"]
[SourceQuality "1"]
[TimeControl "40/5400+30:1800+30"]

{[%evp 16,82,18,17,29,5,30,25,27,20,71,62,57,57,170,161,242,232,233,224,233,224,347,353,338,351,343,323,375,279,508,347,313,343,340,334,339,324,302,155,175,167,152,176,153,98,168,110,133,129,116,79,77,83,74,50,50,50,52,50,62,26,30,26,20,0,32,0,22]} 1. d4 {[%emt 0:00:07]} d5 {[%emt 0:00:16]} 2. c4 {[%emt 0:00:16]} dxc4 {[%emt 0:01:05]} 3. Nf3 {[%emt 0:00:26]} Nf6 {[%emt 0:00:34]} 4. e3 {[%emt 0:00:29]} e6 {[%emt 0:00:18]} 5. Bxc4 {[%emt 0:00:17]} c5 {[%emt 0:00:09]} 6. O-O {[%emt 0:00:43]} a6 {[%emt 0:00:10]} 7. dxc5 {[%emt 0:03:15]} Qxd1 {[%emt 0:01:12]} 8. Rxd1 {[%emt 0:00:06]} Bxc5 {[%emt 0:00:10]} 9. Be2 {[%emt 0:04:22] 9.b3 is the hot move.} Nbd7 {[%emt 0:07:03] D27: Queen's Gambit Accepted: Classical main line: 7 e4!? and 7 a4.} 10. Nc3 {[%emt 0:01:39]} b5 {[%emt 0:06:24]} 11. Nd4 {[%emt 0:01:12][%cal Bf3d4,Bd4b3,Bb3a5][%mdl 32]} Bb7 {[%emt 0:06:24] White has an edge.} 12. Nb3 {[%emt 0:02:37]} Bb6 {[%emt 0:12:41]} (12... O-O $11) 13. a4 $1 $16 {[%emt 0:02:16]} b4 {[%emt 0:04:57]} 14. a5 {[%emt 0:00:58]} bxc3 {[%emt 0:03:09]} (14... Bc7 $14 15. Na2 Bd5) 15. axb6 $18 {[%emt 0:00:34]} cxb2 {[%emt 0:03:16]} (15... c2 $142 16. Rd2 Nxb6) 16. Bxb2 {[%emt 0:00:44]} Nxb6 {[%emt 0:00:11]} 17. Na5 $1 {[%emt 0:00:42]} Bd5 {[%emt 0:06:45]} 18. f3 $1 {[%emt 0:01:59][%mdl 1024] [#] White has strong compensation.} Rd8 $146 {[%emt 0:08:48]} (18... e5 {was worth a try.} 19. e4 Be6 20. Bxe5 O-O) ({Predecessor:} 18... e5 19. Bxe5 Be6 20. Bd6 Nbd5 21. Ra3 Nd7 22. e4 N5b6 23. f4 g6 24. f5 gxf5 25. exf5 Bxf5 {1-0 (34) Izoria,Z (2594)-Durarbayli,V (2627) Chess.com INT 2017}) 19. Ba3 {[%emt 0:03:17]} (19. Bxa6 O-O 20. Ba3 Rfe8) 19... Nfd7 {[%emt 0:03:56]} 20. e4 {[%emt 0:01:25]} Ba8 {[%emt 0:00:07]} 21. Rac1 {[%emt 0:03:36] Hoping for Rc7.} (21. Bxa6 Bxe4 22. fxe4 Ra8 $18) 21... h5 {[%emt 0:03:40]} 22. h4 {[%emt 0:01:20] aiming for Rc7.} g5 $2 {[%emt 0:08:08]} (22... Nb8 {was necessary.} 23. Rc7 Rxd1+ 24. Bxd1 f5 25. exf5 exf5) 23. hxg5 {[%emt 0:06:40]} Rg8 {[%emt 0:00:10]} 24. Rc7 {[%emt 0:01:24]} (24. Bxa6 Rxg5 25. Bb4 Nb8) 24... Rxg5 {[%emt 0:00:36]} 25. Bb4 {[%emt 0:00:18]} h4 {[%emt 0:02:58]} 26. Kf2 {[%emt 0:00:32]} (26. Bxa6 Rb8 27. Kh2 h3 28. gxh3 Nd5 29. exd5 Rxb4) 26... Rb8 {[%emt 0:04:29]} 27. Rh1 {[%emt 0:08:28]} ({Better is} 27. Bxa6 $18 {Ra7 is the strong threat.} f5 28. Bb5) 27... Rh5 {[%emt 0:04:02]} 28. Rhc1 {[%emt 0:03:18]} f5 {[%emt 0:02:51] [#]} 29. exf5 {[%emt 0:01:41] White is much more active.} Rxf5 {[%emt 0:00:47] [#]} 30. Bd3 {[%emt 0:05:23]} ({Don't play} 30. Bxa6 $6 Nd5 31. Rc8+ Kf7 $14) (30. Nc4 $142 $1 {[%cal Rc4d6] And now Nd6+ would win.} Rd5 31. Ba3 (31. Nd6+ Kd8 $16)) 30... Rd5 {[%emt 0:01:22]} (30... Rg5 $16) 31. Bxa6 {[%emt 0:04:13]} (31. Bg6+ $18 Kd8 32. Ra7) 31... h3 {[%emt 0:01:02]} 32. gxh3 {[%emt 0:01:18]} Rf5 {[%emt 0:01:30]} 33. Nb7 {[%emt 0:01:19]} Bxb7 {[%emt 0:00:41]} 34. Bxb7 {[%emt 0:00:09] This bishop pair is nice.} Nd5 {[%emt 0:01:18]} 35. Rc8+ {[%emt 0:01:17]} (35. Bxd5 $5 Rxd5 36. R1c4 $16) 35... Rxc8 {[%emt 0:00:10]} 36. Rxc8+ {[%emt 0:00:06]} Kf7 {[%emt 0:00:10]} 37. Bd6 {[%emt 0:00:32]} Rh5 {[%emt 0:01:51]} 38. Bc6 {[%emt 0:03:48]} N7f6 {[%emt 0:00:58]} 39. Kg3 {[%emt 0:01:39]} ({Much less strong is} 39. Rf8+ Kg7 $16) 39... Rg5+ {[%emt 0:00:18]} 40. Kf2 {[%emt 0:00:11]} Rh5 {[%emt 0:00:06]} 41. Kg3 {[%emt 0:33:44]} ({Don't do} 41. Rf8+ Kg7 $16) 41... Rg5+ {[%emt 0:30:21] Black escapes into a draw.  Weighted Error Value: White=0.27 (precise) /Black=0.28 (precise)} 1/2-1/2

[Event "FIDE WSCC 50 2022"]
[Site "Assisi"]
[Date "2022.11.22"]
[Round "7.6"]
[White "Antic, Dejan"]
[Black "Teo, Kok Siong"]
[Result "1-0"]
[ECO "A35"]
[WhiteElo "2412"]
[BlackElo "2142"]
[Annotator "TA"]
[PlyCount "57"]
[EventDate "2022.11.14"]
[EventType "swiss"]
[EventCountry "ITA"]
[SourceTitle "playchess.com"]
[Source "ChessBase"]
[SourceQuality "1"]
[TimeControl "40/5400+30:1800+30"]

{[%evp 12,57,35,36,59,64,58,58,64,58,70,67,58,59,69,68,57,54,54,49,55,43,74,67,81,72,77,64,94,105,91,93,118,120,624,613,624,616,652,639,831,788,813,803,1709,1636,1126,1039]} 1. d4 {[%emt 0:00:05]} g6 {[%emt 0:00:19]} 2. c4 {[%emt 0:00:39]} Bg7 {[%emt 0:00:13]} 3. Nf3 {[%emt 0:00:50]} d6 {[%emt 0:00:39]} 4. Nc3 {[%emt 0:01:45]} c5 {[%emt 0:01:20]} 5. e3 {[%emt 0:03:31][%cal Be2e3,Be3d4,Bd4d5][%mdl 32]} cxd4 {[%emt 0:01:54]} 6. exd4 {[%emt 0:00:29]} Nc6 {[%emt 0:00:24]} 7. Be2 {[%emt 0:03:27]} h5 {[%emt 0:01:58] [#] A35: Symmetrical English: 2 Nc3 Nc6 3 Nf3.} 8. O-O $146 {[%emt 0:01:52]} ({Predecessor:} 8. Be3 Nh6 9. O-O Nf5 10. Rc1 Bd7 11. d5 Ne5 12. Nd4 Nxe3 13. fxe3 Bh6 14. Qd2 Rc8 15. Ne4 Bg4 16. h3 Bxe2 17. Qxe2 O-O 18. b3 Qb6 19. Kh1 a6 20. Rcd1 Qa5 21. Rde1 Rc7 {½-½ (21) Jagodzinska,H-Jurczynska,A (2095) Bydgoszcz 1978}) 8... Nh6 {[%emt 0:00:44][%cal Bg8h6,Bh6f5,Bf5d4][%mdl 32]} 9. Re1 {[%emt 0:08:47]} Nf5 {[%emt 0:00:59][%cal Rf5d4] White is slightly better.} 10. d5 {[%emt 0:01:20]} Ncd4 {[%emt 0:03:28]} 11. Bg5 {[%emt 0:06:37]} O-O {[%emt 0:03:31]} 12. Bd3 {[%emt 0:03:42] aiming for Nxd4.} Re8 {[%emt 0:01:21]} 13. Nxd4 {[%emt 0:05:50] White is more active.} Nxd4 {[%emt 0:00:23]} 14. Qd2 {[%emt 0:01:44]} Bf5 {[%emt 0:05:29]} 15. Ne4 {[%emt 0:04:25]} Rc8 {[%emt 0:03:49]} 16. Rac1 {[%emt 0:04:08]} a6 {[%emt 0:05:42]} 17. Bf1 {[%emt 0:03:45]} Bxe4 {[%emt 0:20:21]} 18. Rxe4 {[%emt 0:00:10]} Nf5 {[%emt 0:00:05]} 19. g3 {[%emt 0:04:53]} Qb6 {[%emt 0:01:06]} 20. b3 {[%emt 0:01:35]} Nd4 {[%emt 0:02:14] [#] Strongly threatening ...Nf3+.} 21. Bg2 {[%emt 0:02:09] Against Nf3+. Hoping for Be3.} e5 {[%emt 0:03:05]} 22. dxe6 $1 {[%emt 0:00:23]} fxe6 {[%emt 0:00:17][%mdl 8192] A mistake that costs the game.} (22... Nxe6 $16 23. Rce1 Be5) 23. Be3 $18 {[%emt 0:06:01] A strong pair of Bishops. White is clearly winning.} e5 {[%emt 0:00:18]} 24. Re1 {[%emt 0:04:36]} Rf8 {[%emt 0:00:48]} 25. Bxd4 {[%emt 0:00:45]} exd4 {[%emt 0:00:05]} 26. Re6 {[%emt 0:01:44]} d3 {[%emt 0:11:16]} 27. Rxg6 {[%emt 0:01:48] [#] Bd5+ would kill now.} Rc7 {[%emt 0:02:09]} 28. Bd5+ {[%emt 0:00:52]} Kh7 {[%emt 0:00:10]} 29. Ree6 {[%emt 0:01:42] Weighted Error Value: White=0.02 (flawless) /Black=0.47} 1-0

[Event "FIDE WSCC 50 2022"]
[Site "Assisi"]
[Date "2022.11.22"]
[Round "7.7"]
[White "Novik, Maxim"]
[Black "Dishman, Stephen"]
[Result "1/2-1/2"]
[ECO "B13"]
[WhiteElo "2412"]
[BlackElo "2255"]
[Annotator "TA"]
[PlyCount "90"]
[EventDate "2022.11.14"]
[EventType "swiss"]
[EventCountry "ITA"]
[SourceTitle "playchess.com"]
[Source "ChessBase"]
[SourceQuality "1"]
[TimeControl "40/5400+30:1800+30"]

{[%evp 11,90,10,12,8,13,8,2,-8,11,7,17,16,15,5,22,20,28,23,27,27,26,17,17,0,65,67,117,116,117,85,225,100,145,125,186,178,184,187,200,201,195,192,196,188,220,220,223,224,200,204,200,203,238,227,305,300,441,453,493,477,481,453,450,446,516,430,820,641,1059,1046,1027,971,1343,1252,1426,1402,6617,6231,6179,5958,1843]} 1. e4 {[%emt 0:00:02]} c6 {[%emt 0:00:09]} 2. d4 {[%emt 0:00:19]} d5 {[%emt 0:00:05]} 3. exd5 {[%emt 0:00:15]} cxd5 {[%emt 0:00:07]} 4. Bd3 {[%emt 0:00:05]} Nf6 {[%emt 0:00:31]} 5. h3 {[%emt 0:00:37]} Nc6 {[%emt 0:00:27]} 6. c3 {[%emt 0:00:09]} g6 {[%emt 0:00:08]} 7. Nf3 {[%emt 0:00:38] B13: Caro-Kann: Exchange Variation and Panov-Botvinnik Attack.} Bf5 $1 {[%emt 0:00:08][%mdl 4] outshines the older 7...Bg7.} 8. Be2 {[%emt 0:00:18]} e6 {[%emt 0:00:31]} 9. O-O {[%emt 0:05:07] The position is equal.} a6 {[%emt 0:00:04]} 10. Re1 {[%emt 0:04:31] [#]} h5 $146 {[%emt 0:03:14]} ({Predecessor:} 10... h6 11. a3 Qc7 12. Nbd2 g5 13. c4 Rd8 14. c5 Ne4 15. b4 h5 16. Bb2 g4 {0-1 (46) Antipov,M (2609)-Esipenko,A (2701) Sochi 2021}) 11. Bg5 {[%emt 0:10:46]} Be7 {[%emt 0:02:10]} 12. Nbd2 {[%emt 0:00:22]} Ne4 {[%emt 0:04:37]} 13. Bxe7 {[%emt 0:01:04]} Qxe7 {[%emt 0:01:56]} 14. Nxe4 {[%emt 0:00:26]} Bxe4 {[%emt 0:09:42]} 15. Nd2 {[%emt 0:01:28]} Bf5 {[%emt 0:01:22]} 16. Bf3 {[%emt 0:10:19]} Rd8 {[%emt 0:09:16]} 17. Nf1 {[%emt 0:00:26]} Qg5 {[%emt 0:13:09]} (17... Kf8 $11) 18. Qb3 $1 $14 {[%emt 0:06:32][%csl LRb7,LRd5]} Bxh3 {[%emt 0:16:05]} (18... O-O $1 $14) 19. Qxb7 $16 {[%emt 0:00:23]} Ne7 {[%emt 0:06:53]} 20. Re5 {[%emt 0:03:04] White has more active pieces. The black rooks are badly placed.} Nf5 {[%emt 0:03:31] [#]} (20... Qf6 $16 {keeps fighting.}) 21. Qxa6 {[%emt 0:16:56]} (21. Ng3 h4 22. Nxf5 (22. gxh3 $2 hxg3 23. Bg4 gxf2+ 24. Kxf2 Qf4+ 25. Kg1 Qg3+ 26. Kf1 O-O $19) 22... gxf5 23. Bxd5 (23. Qxa6 $2 Bxg2 24. Bxg2 h3 $19) 23... Bxg2 24. Bxg2 h3 $14) (21. Bxd5 $1 $18 {[%mdl 512] is the precise move to win. Threatens to win with f4.} O-O 22. Bb3) 21... Kf8 {[%emt 0:05:53]} 22. Qd3 {[%emt 0:03:38][%cal Of3d5]} f6 {[%emt 0:02:42] [#]} (22... Bg4 $16) 23. Ree1 $1 $18 {[%emt 0:05:00][%cal Of3d5]} ({Not} 23. Rxe6 Nh4 24. Rb6 Nxg2 25. Rxf6+ Qxf6 $17) 23... Nh4 {[%emt 0:06:01][%cal Rh4g2]} 24. Ng3 {[%emt 0:02:01]} Nxf3+ {[%emt 0:03:15]} 25. Qxf3 {[%emt 0:00:20]} Bg4 {[%emt 0:04:57]} 26. Qe3 {[%emt 0:00:45]} Qxe3 {[%emt 0:01:44]} 27. Rxe3 {[%emt 0:00:24]} Kf7 {[%emt 0:02:45]} 28. f3 {[%emt 0:05:16]} Bf5 {[%emt 0:00:35]} 29. Nxf5 {[%emt 0:03:29]} gxf5 {[%emt 0:00:04][%mdl 4096] Endgame KRR-KRR} 30. a4 {[%emt 0:00:22][%cal Ba2a4,Ba4a5,Ba5a6][%mdl 32]} f4 {[%emt 0:01:02]} 31. Re2 {[%emt 0:00:01]} h4 {[%emt 0:00:54]} 32. a5 {[%emt 0:00:31]} h3 {[%emt 0:00:49]} 33. a6 {[%emt 0:00:54]} hxg2 {[%emt 0:00:29]} (33... e5 {might work better.} 34. a7 hxg2 35. Rxg2 Ra8) 34. Rxg2 {[%emt 0:00:01] White is clearly winning.} e5 {[%emt 0:00:19]} 35. b4 {[%emt 0:02:18][%cal Bb2b4,Bb4b5][%mdl 32]} Ra8 {[%emt 0:00:58]} 36. b5 {[%emt 0:00:15]} Rhb8 {[%emt 0:00:13]} 37. Ra5 {[%emt 0:01:03]} e4 {[%emt 0:01:02]} 38. Kf1 {[%emt 0:04:33]} Ra7 {[%emt 0:00:56]} (38... exf3 $142 39. Rg4 Rc8 40. Rxf4 Rxc3) 39. Rg4 {[%emt 0:01:28]} f5 {[%emt 0:00:18]} 40. Rxf4 {[%emt 0:00:16]} Kg6 {[%emt 0:00:30]} 41. fxe4 {[%emt 0:33:36]} fxe4 {[%emt 0:05:31]} 42. Ke2 {[%emt 0:00:00] Hoping for Ra1.} Kg5 {[%emt 0:01:31] [#]} 43. Rxe4 $3 {[%emt 0:00:00][%mdl 512]} dxe4 {[%emt 0:01:39]} (43... Rh7 44. a7) 44. b6+ $1 {[%emt 0:00:00][%mdl 64] Discovered Attack} Kf4 {[%emt 0:00:03]} 45. bxa7 {[%emt 0:00:00]} Ra8 {[%emt 0:02:19][%mdl 32768] Weighted Error Value: White=0.18 (very precise) /Black=0.32. An unexpected result.} 1/2-1/2

[Event "FIDE WSCC 50 2022"]
[Site "Assisi"]
[Date "2022.11.22"]
[Round "7.8"]
[White "Arakhamia-Grant, Ketevan"]
[Black "Bellia, Fabrizio"]
[Result "0-1"]
[ECO "C60"]
[WhiteElo "2327"]
[BlackElo "2398"]
[Annotator "TA"]
[PlyCount "90"]
[EventDate "2022.11.14"]
[EventType "swiss"]
[EventCountry "ITA"]
[SourceTitle "playchess.com"]
[Source "ChessBase"]
[SourceQuality "1"]
[TimeControl "40/5400+30:1800+30"]

{[%evp 18,90,32,25,24,31,31,22,27,26,26,37,35,37,31,19,38,35,38,9,9,9,9,9,9,9,9,0,0,0,0,0,0,0,20,-11,-11,-11,10,-13,-12,-176,-164,-125,-150,-364,-353,-346,-206,-225,-13,-284,114,123,119,114,124,-347,-372,-353,-342,-373,-367,-555,-548,-633,-627,-814,-817,-817,-811,-817,-810,-778,-736]} 1. e4 {[%emt 0:00:02]} e5 {[%emt 0:00:07]} 2. Nf3 {[%emt 0:00:08]} Nc6 {[%emt 0:00:04]} 3. Bb5 {[%emt 0:00:08]} a6 {[%emt 0:00:05]} 4. Ba4 {[%emt 0:00:04]} d6 {[%emt 0:00:04]} 5. O-O {[%emt 0:00:17]} Bd7 {[%emt 0:00:03]} 6. c3 {[%emt 0:00:20]} g6 {[%emt 0:00:11]} 7. d4 {[%emt 0:00:18]} Bg7 {[%emt 0:00:07]} 8. h3 {[%emt 0:00:32]} Nf6 {[%emt 0:00:24]} 9. Re1 {[%emt 0:00:23]} O-O {[%emt 0:00:29]} 10. Nbd2 {[%emt 0:00:15]} Re8 {[%emt 0:01:16] C60: Ruy Lopez: Unusual Black 3rd moves and 3...g6.} 11. Bc2 {[%emt 0:00:15]} b5 {[%emt 0:01:24]} 12. Nf1 {[%emt 0:00:25]} Na5 {[%emt 0:00:33] The position is equal.} 13. Ng3 {[%emt 0:00:20] is recently more successful than 13.b3.} c5 {[%emt 0:00:07]} 14. d5 {[%emt 0:00:42]} Nc4 {[%emt 0:00:11]} 15. b3 {[%emt 0:09:03]} Nb6 {[%emt 0:00:08]} 16. Bg5 {[%emt 0:00:49]} h6 {[%emt 0:01:09]} 17. Be3 {[%emt 0:00:08] [#]} c4 $146 {[%emt 0:02:01]} ({Predecessor:} 17... a5 18. Qd2 Kh7 19. Nh2 a4 20. f4 exf4 21. Bxf4 Qc7 22. Rac1 axb3 23. axb3 Ra2 {0-1 (29) Dominguez Perez,L (2754)-Caruana,F (2776) Saint Louis 2022}) 18. b4 {[%emt 0:08:15]} a5 {[%emt 0:00:31]} 19. a3 {[%emt 0:00:20]} Qc7 {[%emt 0:00:45]} 20. Qd2 {[%emt 0:01:24]} Kh7 {[%emt 0:00:10]} 21. Nh2 {[%emt 0:18:56]} Ra6 {[%emt 0:02:18]} 22. Rf1 {[%emt 0:06:02]} Rea8 {[%emt 0:02:58]} 23. Rac1 {[%emt 0:01:34]} axb4 {[%emt 0:00:29]} 24. axb4 {[%emt 0:00:05]} Ra2 {[%emt 0:05:57]} 25. f4 {[%emt 0:01:07] And now fxe5 would win.} Be8 {[%emt 0:12:37]} 26. fxe5 {[%emt 0:24:46]} dxe5 {[%emt 0:00:43]} 27. Rf2 {[%emt 0:00:42]} Ra1 {[%emt 0:06:39]} 28. Bb1 {[%emt 0:01:23]} R8a3 {[%emt 0:02:27] Threatens to win with ...Na4.} 29. Nf3 $2 {[%emt 0:04:58]} (29. Qe1 $11) 29... Na4 $1 $19 {[%emt 0:09:14]} 30. d6 {[%emt 0:06:46]} Qd8 {[%emt 0:13:18][%cal Oa1b1]} 31. Nxe5 $2 {[%emt 0:02:22] [#]} (31. Rff1 $17) 31... Nxc3 $1 {[%emt 0:05:42][%mdl 512]} 32. Bc2 {[%emt 0:02:48] [#]} Rxc1+ {[%emt 0:07:38]} (32... Nfxe4 $142 $1 {[%mdl 512]} 33. Nxe4 Bxe5 34. Rxa1 (34. d7 $2 Nxe4 35. dxe8=Q Qxe8 $19) 34... Rxa1+ 35. Rf1 Nxe4 36. Bxe4 Bh2+ $1 {[%mdl 512]} 37. Kxh2 Rxf1) 33. Qxc1 {[%emt 0:00:05]} Ra6 {[%emt 0:02:44]} (33... Qa8 $19 34. Qd2 Nfxe4 35. Nxe4 Nxe4 36. Bxe4 Qxe4) 34. Nf3 $2 {[%emt 0:04:29][%mdl 8192] [#]} (34. Nxf7 $1 $11 Bxf7 35. e5) 34... Nfxe4 $2 {[%emt 0:02:10]} 35. Nxe4 $16 {[%emt 0:05:21]} Nxe4 {[%emt 0:00:09]} 36. Bxe4 {[%emt 0:00:40] Bc5 is the strong threat.} Ra1 {[%emt 0:00:17] [#]} 37. Qxa1 {[%emt 0:00:39][%mdl 8192]} Bxa1 $19 {[%emt 0:00:06]} 38. Bc5 {[%emt 0:00:20]} Qd7 {[%emt 0:05:08]} 39. Re2 {[%emt 0:01:48]} Bf6 {[%emt 0:00:46]} 40. g4 {[%emt 0:00:58]} (40. Re1 $142) 40... Qc8 {[%emt 0:02:50] Black is clearly winning.} 41. Kf2 {[%emt 0:06:26]} Bc6 {[%emt 0:06:50]} 42. Kg3 {[%emt 0:00:32]} Bxe4 {[%emt 0:04:16]} 43. Rxe4 {[%emt 0:00:31]} c3 {[%emt 0:00:35] Strongly threatening ...c2.} 44. Re2 {[%emt 0:02:14]} Qc6 {[%emt 0:00:33]} 45. h4 {[%emt 0:00:25]} g5 {[%emt 0:01:45] Weighted Error Value: White=0.57/Black=0.28 (precise)} 0-1